[Event "Early-Titled-Tuesday-Blitz-September-26-2023"]
[Site "Chess.com"]
[Date "2023.09.26"]
[Round "3"]
[White "JosefineHeinemann"]
[Black "JaloliddinIlkhomi"]
[Result "0-1"]
[WhiteElo "2579"]
[BlackElo "2757"]
[TimeControl "180+1"]
[EndTime "8:28:48 PDT"]
[Termination "JaloliddinIlkhomi won by resignation"]

1. e4 {[%clk 0:03:00.9]} 1... e6 {[%clk 0:02:59.2]} 2. d4 {[%clk 0:02:56.9]}
2... d5 {[%clk 0:02:59.2]} 3. e5 {[%clk 0:02:56.5]} 3... c5 {[%clk 0:02:59.1]}
4. c3 {[%clk 0:02:48.1]} 4... Qb6 {[%clk 0:02:59.2]} 5. Nf3 {[%clk 0:02:47.5]}
5... Bd7 {[%clk 0:02:59]} 6. Be2 {[%clk 0:02:33.2]} 6... cxd4 {[%clk 0:02:54.9]}
7. cxd4 {[%clk 0:02:32.9]} 7... Bb5 {[%clk 0:02:55.5]} 8. O-O {[%clk 0:02:32.5]}
8... Bxe2 {[%clk 0:02:54.9]} 9. Qxe2 {[%clk 0:02:33.4]} 9... Nc6 {[%clk
0:02:55.3]} 10. Be3 {[%clk 0:02:31.7]} 10... Nge7 {[%clk 0:02:53.2]} 11. Nc3
{[%clk 0:02:28.2]} 11... Nf5 {[%clk 0:02:53.5]} 12. Rfd1 {[%clk 0:02:27.5]}
12... Be7 {[%clk 0:02:52]} 13. Rac1 {[%clk 0:02:26.8]} 13... O-O {[%clk
0:02:50.3]} 14. Na4 {[%clk 0:02:26.8]} 14... Qa5 {[%clk 0:02:48.3]} 15. b3
{[%clk 0:02:18.4]} 15... Rac8 {[%clk 0:02:45.2]} 16. Nc5 {[%clk 0:02:01.3]}
16... Ncxd4 {[%clk 0:01:58]} 17. Nxd4 {[%clk 0:01:56.7]} 17... Nxd4 {[%clk
0:01:55.3]} 18. Bxd4 {[%clk 0:01:24]} 18... Bxc5 {[%clk 0:01:53.6]} 19. Qc2
{[%clk 0:01:23.2]} 19... b6 {[%clk 0:01:42.8]} 20. Rd3 {[%clk 0:00:47.2]} 20...
h6 {[%clk 0:00:37.7]} 21. Rc3 {[%clk 0:00:43.7]} 21... Rc7 {[%clk 0:00:26.9]}
22. Bxc5 {[%clk 0:00:41.7]} 22... bxc5 {[%clk 0:00:27.8]} 23. Rxc5 {[%clk
0:00:40.9]} 23... Rxc5 {[%clk 0:00:28.5]} 24. Qxc5 {[%clk 0:00:41.1]} 24... Qxa2
{[%clk 0:00:28.9]} 25. b4 {[%clk 0:00:37.7]} 25... Qb2 {[%clk 0:00:27.9]} 26.
Re1 {[%clk 0:00:31.5]} 26... Rb8 {[%clk 0:00:19.4]} 27. Qxa7 {[%clk 0:00:31.6]}
27... Qxb4 {[%clk 0:00:19.1]} 28. Rf1 {[%clk 0:00:31.4]} 28... Qb7 {[%clk
0:00:18]} 29. Qd4 {[%clk 0:00:31.4]} 29... Rc8 {[%clk 0:00:18.2]} 30. g3 {[%clk
0:00:30]} 30... Qc7 {[%clk 0:00:18.2]} 31. h4 {[%clk 0:00:26.9]} 31... Qc4
{[%clk 0:00:18.5]} 32. Qa1 {[%clk 0:00:26.1]} 32... Qc3 {[%clk 0:00:18]} 33.
Qxc3 {[%clk 0:00:23.8]} 33... Rxc3 {[%clk 0:00:18.9]} 34. Re1 {[%clk 0:00:24.3]}
34... Kf8 {[%clk 0:00:18.8]} 35. Kg2 {[%clk 0:00:24.3]} 35... Ke7 {[%clk
0:00:19]} 36. Ra1 {[%clk 0:00:25]} 36... Rc7 {[%clk 0:00:16.7]} 37. Ra6 {[%clk
0:00:23.7]} 37... f6 {[%clk 0:00:16.9]} 38. exf6+ {[%clk 0:00:20.4]} 38... gxf6
{[%clk 0:00:17.1]} 39. Kf3 {[%clk 0:00:21.3]} 39... e5 {[%clk 0:00:16.8]} 40.
Kg4 {[%clk 0:00:21]} 40... Rc2 {[%clk 0:00:16.1]} 41. f3 {[%clk 0:00:20.3]}
41... Rc3 {[%clk 0:00:14.1]} 42. Ra7+ {[%clk 0:00:20]} 42... Ke6 {[%clk
0:00:14.7]} 43. Ra6+ {[%clk 0:00:20.1]} 43... Kf7 {[%clk 0:00:14.8]} 44. h5
{[%clk 0:00:20.6]} 44... d4 {[%clk 0:00:13.9]} 45. Ra7+ {[%clk 0:00:20.9]} 45...
Ke6 {[%clk 0:00:14.6]} 46. Ra6+ {[%clk 0:00:21.4]} 46... Kd5 {[%clk 0:00:14.6]}
47. Rxf6 {[%clk 0:00:21.4]} 47... d3 {[%clk 0:00:15]} 48. Rf8 {[%clk 0:00:21.6]}
48... Rc6 {[%clk 0:00:15.3]} 49. Rd8+ {[%clk 0:00:14]} 49... Rd6 {[%clk
0:00:15.8]} 50. Ra8 {[%clk 0:00:14.5]} 50... d2 {[%clk 0:00:13.7]} 51. Ra1
{[%clk 0:00:15.4]} 51... Kc4 {[%clk 0:00:14.3]} 52. Rd1 {[%clk 0:00:15.3]} 52...
Kd3 {[%clk 0:00:14.9]} 53. f4 {[%clk 0:00:15.7]} 53... e4 {[%clk 0:00:14.8]} 54.
f5 {[%clk 0:00:15.3]} 54... e3 {[%clk 0:00:15.3]} 0-1

[Event "Early-Titled-Tuesday-Blitz-September-26-2023"]
[Site "Chess.com"]
[Date "2023.09.26"]
[Round "3"]
[White "Staudenhocker43"]
[Black "Iball95"]
[Result "0-1"]
[WhiteElo "2571"]
[BlackElo "2779"]
[TimeControl "180+1"]
[EndTime "8:28:49 PDT"]
[Termination "Iball95 won by resignation"]

1. d4 {[%clk 0:03:00.9]} 1... d5 {[%clk 0:03:00.2]} 2. c4 {[%clk 0:03:00.1]}
2... e6 {[%clk 0:03:00.7]} 3. Nc3 {[%clk 0:02:59.7]} 3... c5 {[%clk 0:03:00.4]}
4. e3 {[%clk 0:02:56.5]} 4... Nf6 {[%clk 0:02:59.2]} 5. Nf3 {[%clk 0:02:56.2]}
5... Nc6 {[%clk 0:02:59.3]} 6. a3 {[%clk 0:02:54.7]} 6... Ne4 {[%clk 0:02:58.6]}
7. cxd5 {[%clk 0:02:48.8]} 7... exd5 {[%clk 0:02:57.9]} 8. Bd3 {[%clk
0:02:40.4]} 8... Nxc3 {[%clk 0:02:54.5]} 9. bxc3 {[%clk 0:02:40.2]} 9... Be7
{[%clk 0:02:54.1]} 10. O-O {[%clk 0:02:39.1]} 10... O-O {[%clk 0:02:53.8]} 11.
h3 {[%clk 0:02:38.8]} 11... Be6 {[%clk 0:02:48.6]} 12. Rb1 {[%clk 0:02:35]}
12... b6 {[%clk 0:02:47.2]} 13. Re1 {[%clk 0:02:28.7]} 13... Rc8 {[%clk
0:02:46.4]} 14. Bb2 {[%clk 0:02:24.2]} 14... Re8 {[%clk 0:02:41.2]} 15. Bb5
{[%clk 0:02:19.4]} 15... Rf8 {[%clk 0:02:32.7]} 16. Qa4 {[%clk 0:02:18]} 16...
Qc7 {[%clk 0:02:31.6]} 17. Rbc1 {[%clk 0:02:14.3]} 17... Na5 {[%clk 0:02:26.4]}
18. Nd2 {[%clk 0:02:04]} 18... c4 {[%clk 0:02:08.3]} 19. e4 {[%clk 0:01:57.2]}
19... a6 {[%clk 0:01:59.9]} 20. Bxa6 {[%clk 0:01:55.4]} 20... Ra8 {[%clk
0:01:59.6]} 21. exd5 {[%clk 0:01:28.5]} 21... Bxd5 {[%clk 0:02:00.3]} 22. Qb5
{[%clk 0:01:27.1]} 22... Bc6 {[%clk 0:02:00]} 23. Qe5 {[%clk 0:01:27.3]} 23...
Bd6 {[%clk 0:01:53.8]} 24. Qh5 {[%clk 0:01:01.4]} 24... Rxa6 {[%clk 0:01:52.2]}
25. d5 {[%clk 0:01:00.7]} 25... Bd7 {[%clk 0:01:47.1]} 26. Ne4 {[%clk
0:01:00.8]} 26... Raa8 {[%clk 0:01:46.9]} 27. Rcd1 {[%clk 0:00:56.8]} 27... Rae8
{[%clk 0:01:43.9]} 28. Bc1 {[%clk 0:00:50.4]} 28... Re5 {[%clk 0:01:42]} 29. Ng5
{[%clk 0:00:42]} 29... h6 {[%clk 0:01:35]} 30. Rxe5 {[%clk 0:00:35.4]} 30...
Bxe5 {[%clk 0:01:35.5]} 31. Ne4 {[%clk 0:00:24.8]} 31... Re8 {[%clk 0:01:27.9]}
32. Kf1 {[%clk 0:00:19.9]} 32... Nb3 {[%clk 0:01:22.5]} 33. Be3 {[%clk
0:00:19.4]} 33... f5 {[%clk 0:01:15.9]} 34. Nd2 {[%clk 0:00:16.6]} 34... Nxd2+
{[%clk 0:01:13.4]} 35. Bxd2 {[%clk 0:00:17.5]} 35... Qd6 {[%clk 0:01:09]} 36.
Re1 {[%clk 0:00:17.1]} 36... b5 {[%clk 0:01:04.6]} 37. Kg1 {[%clk 0:00:09.7]}
37... Re7 {[%clk 0:00:59.1]} 38. Be3 {[%clk 0:00:08.2]} 38... Qxd5 {[%clk
0:00:57]} 39. Rd1 {[%clk 0:00:08.6]} 39... Qf7 {[%clk 0:00:56.6]} 40. Qf3 {[%clk
0:00:07.7]} 40... Bxc3 {[%clk 0:00:51]} 41. Bc5 {[%clk 0:00:05.9]} 41... Re1+
{[%clk 0:00:50.5]} 42. Rxe1 {[%clk 0:00:05.5]} 42... Bxe1 {[%clk 0:00:51.2]} 43.
Qa8+ {[%clk 0:00:05.8]} 43... Kh7 {[%clk 0:00:50.8]} 44. Qf3 {[%clk 0:00:05.7]}
44... Bd2 {[%clk 0:00:45.6]} 45. Qe2 {[%clk 0:00:06.1]} 45... c3 {[%clk
0:00:44.2]} 46. Bd4 {[%clk 0:00:06]} 46... Bc6 {[%clk 0:00:41]} 47. f3 {[%clk
0:00:05.5]} 47... f4 {[%clk 0:00:22.3]} 48. Qd3+ {[%clk 0:00:05.1]} 48... Qg6
{[%clk 0:00:21.7]} 49. Qe2 {[%clk 0:00:04.4]} 49... Bxf3 {[%clk 0:00:18.4]} 50.
Qxf3 {[%clk 0:00:03.7]} 50... c2 {[%clk 0:00:18.3]} 51. Bb2 {[%clk 0:00:02.9]}
51... Be3+ {[%clk 0:00:18.1]} 52. Kh2 {[%clk 0:00:02.5]} 52... Qg3+ {[%clk
0:00:17.8]} 53. Qxg3 {[%clk 0:00:02.2]} 53... fxg3+ {[%clk 0:00:18.5]} 54. Kxg3
{[%clk 0:00:03.1]} 54... c1=Q {[%clk 0:00:17.9]} 55. Bxc1 {[%clk 0:00:03.7]}
55... Bxc1 {[%clk 0:00:18.7]} 56. Kf3 {[%clk 0:00:04]} 56... Bxa3 {[%clk
0:00:18.7]} 57. Ke4 {[%clk 0:00:04.7]} 57... Kg6 {[%clk 0:00:19]} 0-1

[Event "Early-Titled-Tuesday-Blitz-September-26-2023"]
[Site "Chess.com"]
[Date "2023.09.26"]
[Round "3"]
[White "AleksandrAleksikov"]
[Black "maracayo"]
[Result "1-0"]
[WhiteElo "2224"]
[BlackElo "2369"]
[TimeControl "180+1"]
[EndTime "8:28:50 PDT"]
[Termination "AleksandrAleksikov won by checkmate"]

1. e4 {[%clk 0:03:00.9]} 1... d6 {[%clk 0:02:59.4]} 2. Nf3 {[%clk 0:02:59.9]}
2... Nf6 {[%clk 0:02:58.8]} 3. Nc3 {[%clk 0:02:59.3]} 3... c6 {[%clk 0:02:58.6]}
4. d4 {[%clk 0:02:58.6]} 4... Qa5 {[%clk 0:02:58.1]} 5. Bd3 {[%clk 0:02:57.7]}
5... e5 {[%clk 0:02:57.9]} 6. O-O {[%clk 0:02:52.3]} 6... Be7 {[%clk 0:02:57.2]}
7. h3 {[%clk 0:02:49.9]} 7... O-O {[%clk 0:02:56]} 8. Be3 {[%clk 0:02:48.4]}
8... Nbd7 {[%clk 0:02:54.8]} 9. a3 {[%clk 0:02:47]} 9... Re8 {[%clk 0:02:54.3]}
10. b4 {[%clk 0:02:45.8]} 10... Qc7 {[%clk 0:02:53.2]} 11. Re1 {[%clk
0:02:44.9]} 11... h6 {[%clk 0:02:52.7]} 12. Qd2 {[%clk 0:02:44]} 12... Bf8
{[%clk 0:02:45.2]} 13. Nh4 {[%clk 0:02:28.4]} 13... a6 {[%clk 0:02:24]} 14. dxe5
{[%clk 0:02:12.8]} 14... dxe5 {[%clk 0:02:17.7]} 15. Bc4 {[%clk 0:02:11]} 15...
b5 {[%clk 0:02:13.9]} 16. Ba2 {[%clk 0:02:05.9]} 16... Bb7 {[%clk 0:02:11.2]}
17. Ng6 {[%clk 0:01:57.5]} 17... c5 {[%clk 0:02:11]} 18. Nxf8 {[%clk 0:01:55.8]}
18... Rxf8 {[%clk 0:02:09.1]} 19. Nd5 {[%clk 0:01:54.6]} 19... Bxd5 {[%clk
0:02:06.3]} 20. Bxd5 {[%clk 0:01:53.3]} 20... Rad8 {[%clk 0:02:03.6]} 21. c4
{[%clk 0:01:31.3]} 21... bxc4 {[%clk 0:01:52]} 22. Bxc4 {[%clk 0:01:28.6]} 22...
Nb6 {[%clk 0:01:46.7]} 23. Qe2 {[%clk 0:01:20.3]} 23... cxb4 {[%clk 0:01:36.6]}
24. Bxa6 {[%clk 0:01:18.5]} 24... bxa3 {[%clk 0:01:19]} 25. Rxa3 {[%clk
0:01:06.4]} 25... Rd6 {[%clk 0:01:05.8]} 26. Bb5 {[%clk 0:00:44.6]} 26... Rb8
{[%clk 0:00:56.9]} 27. Rc1 {[%clk 0:00:39]} 27... Qd8 {[%clk 0:00:54.6]} 28. Qf3
{[%clk 0:00:32.4]} 28... Nbd7 {[%clk 0:00:45.4]} 29. Bc4 {[%clk 0:00:30.1]}
29... Nf8 {[%clk 0:00:36.3]} 30. Qg3 {[%clk 0:00:26.5]} 30... N6d7 {[%clk
0:00:20.9]} 31. Rac3 {[%clk 0:00:21.4]} 31... Rg6 {[%clk 0:00:15]} 32. Qf3
{[%clk 0:00:19.9]} 32... Rf6 {[%clk 0:00:14.9]} 33. Qg3 {[%clk 0:00:19.2]} 33...
Qa5 {[%clk 0:00:14.6]} 34. Bd5 {[%clk 0:00:16.7]} 34... Re8 {[%clk 0:00:10.7]}
35. Kh2 {[%clk 0:00:15.8]} 35... Kh7 {[%clk 0:00:10.1]} 36. h4 {[%clk
0:00:15.1]} 36... Ne6 {[%clk 0:00:08.5]} 37. Qg4 {[%clk 0:00:13.8]} 37... Ndf8
{[%clk 0:00:07.9]} 38. g3 {[%clk 0:00:13.2]} 38... Rg6 {[%clk 0:00:07.1]} 39.
Qf5 {[%clk 0:00:12.1]} 39... Kg8 {[%clk 0:00:06.8]} 40. Qh3 {[%clk 0:00:08]}
40... Rf6 {[%clk 0:00:06.5]} 41. Qg4 {[%clk 0:00:07.4]} 41... Qb4 {[%clk
0:00:04.3]} 42. h5 {[%clk 0:00:06.7]} 42... Qe7 {[%clk 0:00:02.6]} 43. Kg2
{[%clk 0:00:05.7]} 43... Nf4+ {[%clk 0:00:02.4]} 44. gxf4 {[%clk 0:00:04.2]}
44... exf4 {[%clk 0:00:03.3]} 45. Bd4 {[%clk 0:00:03.2]} 45... Rd6 {[%clk
0:00:02.5]} 46. Qxg7# {[%clk 0:00:01.6]} 1-0

[Event "Early-Titled-Tuesday-Blitz-September-26-2023"]
[Site "Chess.com"]
[Date "2023.09.26"]
[Round "3"]
[White "Aradhya2000"]
[Black "Likvidator228"]
[Result "1-0"]
[WhiteElo "2707"]
[BlackElo "2541"]
[TimeControl "180+1"]
[EndTime "8:28:51 PDT"]
[Termination "Aradhya2000 won by resignation"]

1. d4 {[%clk 0:03:00.9]} 1... d5 {[%clk 0:02:59.4]} 2. c4 {[%clk 0:03:00.7]}
2... e6 {[%clk 0:02:59.5]} 3. Nc3 {[%clk 0:03:00.9]} 3... c6 {[%clk 0:02:58.6]}
4. e3 {[%clk 0:02:53.1]} 4... Nf6 {[%clk 0:02:57.3]} 5. Nf3 {[%clk 0:02:53.1]}
5... Nbd7 {[%clk 0:02:55.6]} 6. Qc2 {[%clk 0:02:51.8]} 6... Be7 {[%clk
0:02:49.9]} 7. b3 {[%clk 0:02:50.5]} 7... O-O {[%clk 0:02:48.6]} 8. Bd3 {[%clk
0:02:50.3]} 8... b6 {[%clk 0:02:48.2]} 9. O-O {[%clk 0:02:49.8]} 9... Bb7 {[%clk
0:02:48.5]} 10. Bb2 {[%clk 0:02:50]} 10... c5 {[%clk 0:02:48.9]} 11. cxd5 {[%clk
0:02:49.8]} 11... exd5 {[%clk 0:02:43.5]} 12. Rad1 {[%clk 0:02:48.5]} 12... Rc8
{[%clk 0:02:39.4]} 13. Qe2 {[%clk 0:02:44.7]} 13... h6 {[%clk 0:02:31]} 14. Ne5
{[%clk 0:02:42.3]} 14... Re8 {[%clk 0:02:25.7]} 15. Bf5 {[%clk 0:02:40.6]} 15...
cxd4 {[%clk 0:02:20.2]} 16. Nxd7 {[%clk 0:02:37.9]} 16... Nxd7 {[%clk
0:02:06.5]} 17. Rxd4 {[%clk 0:02:35.2]} 17... Bf6 {[%clk 0:02:06.4]} 18. Rxd5
{[%clk 0:02:27.1]} 18... Bxd5 {[%clk 0:02:00.3]} 19. Nxd5 {[%clk 0:02:28]} 19...
Bxb2 {[%clk 0:01:58.3]} 20. Qxb2 {[%clk 0:02:28.9]} 20... Rc5 {[%clk 0:01:41.5]}
21. Rd1 {[%clk 0:02:26.8]} 21... Nf6 {[%clk 0:01:40.2]} 22. Nxf6+ {[%clk
0:02:22.1]} 22... Qxf6 {[%clk 0:01:39.6]} 23. Qxf6 {[%clk 0:02:22.8]} 23... gxf6
{[%clk 0:01:40.5]} 24. g4 {[%clk 0:02:23.3]} 24... Re7 {[%clk 0:01:36.2]} 25.
Kg2 {[%clk 0:02:17.7]} 25... Kg7 {[%clk 0:01:33.9]} 26. Kf3 {[%clk 0:02:07.3]}
26... Rec7 {[%clk 0:01:29.9]} 27. Rd4 {[%clk 0:01:55.5]} 27... Rc1 {[%clk
0:01:27.7]} 28. Rd8 {[%clk 0:01:47.6]} 28... Ra1 {[%clk 0:01:26.6]} 29. a4
{[%clk 0:01:41.5]} 29... Ra3 {[%clk 0:01:23.2]} 30. Rd3 {[%clk 0:01:41.6]} 30...
Ra2 {[%clk 0:01:00.3]} 31. Rd4 {[%clk 0:01:28.8]} 31... Rb2 {[%clk 0:00:59.9]}
32. b4 {[%clk 0:01:28.7]} 32... Ra2 {[%clk 0:00:52.7]} 33. b5 {[%clk 0:01:29.2]}
33... Rc1 {[%clk 0:00:43.8]} 34. Kg2 {[%clk 0:01:28.9]} 34... Rc7 {[%clk
0:00:39.7]} 35. Be4 {[%clk 0:01:14.5]} 35... Kf8 {[%clk 0:00:32.4]} 36. Bc6
{[%clk 0:01:12.1]} 36... a5 {[%clk 0:00:23.9]} 37. bxa6 {[%clk 0:01:01.6]} 37...
Rxc6 {[%clk 0:00:23.9]} 38. Rd8+ {[%clk 0:01:01.6]} 38... Ke7 {[%clk 0:00:23.4]}
39. a7 {[%clk 0:01:02.3]} 39... Rxa4 {[%clk 0:00:23.1]} 40. a8=Q {[%clk
0:01:02.6]} 40... Rxa8 {[%clk 0:00:23.6]} 41. Rxa8 {[%clk 0:01:03]} 41... b5
{[%clk 0:00:20.7]} 42. Ra7+ {[%clk 0:01:00.9]} 42... Kd6 {[%clk 0:00:20.8]} 43.
Rxf7 {[%clk 0:01:00.3]} 43... Ke6 {[%clk 0:00:21.2]} 44. Rb7 {[%clk 0:01:00.1]}
44... Rc5 {[%clk 0:00:21.5]} 45. Kf3 {[%clk 0:01:00]} 45... h5 {[%clk
0:00:20.6]} 46. h3 {[%clk 0:00:59.5]} 46... hxg4+ {[%clk 0:00:20.7]} 47. hxg4
{[%clk 0:01:00.4]} 47... Rd5 {[%clk 0:00:19.1]} 48. Rb6+ {[%clk 0:00:59.9]}
48... Kf7 {[%clk 0:00:19.2]} 49. Kf4 {[%clk 0:00:51.6]} 49... Kg6 {[%clk
0:00:18.2]} 50. e4 {[%clk 0:00:50.7]} 50... Rc5 {[%clk 0:00:18.2]} 51. Rb7
{[%clk 0:00:46.6]} 51... Re5 {[%clk 0:00:16.9]} 52. f3 {[%clk 0:00:45.2]} 52...
Rc5 {[%clk 0:00:17]} 53. Rd7 {[%clk 0:00:44.9]} 53... b4 {[%clk 0:00:16.5]} 54.
Rb7 {[%clk 0:00:44.6]} 54... Rc4 {[%clk 0:00:16.8]} 55. Rb6 {[%clk 0:00:44.9]}
55... Kf7 {[%clk 0:00:16.7]} 56. g5 {[%clk 0:00:44]} 56... fxg5+ {[%clk
0:00:15.7]} 57. Kxg5 {[%clk 0:00:44.9]} 57... Rc3 {[%clk 0:00:15.8]} 58. f4
{[%clk 0:00:45.3]} 58... b3 {[%clk 0:00:16.3]} 59. e5 {[%clk 0:00:45.8]} 59...
Ke7 {[%clk 0:00:15.3]} 60. Kf5 {[%clk 0:00:44.1]} 60... Kd7 {[%clk 0:00:15.6]}
61. e6+ {[%clk 0:00:42.1]} 61... Kc7 {[%clk 0:00:15.9]} 62. Rb4 {[%clk
0:00:42.2]} 62... Kd6 {[%clk 0:00:15.9]} 63. Kf6 {[%clk 0:00:41.4]} 63... Rf3
{[%clk 0:00:16.3]} 64. f5 {[%clk 0:00:41.1]} 64... Kc5 {[%clk 0:00:17]} 65. Rb8
{[%clk 0:00:40.4]} 65... Rf4 {[%clk 0:00:16.8]} 66. e7 {[%clk 0:00:40.2]} 66...
Re4 {[%clk 0:00:15.7]} 67. e8=Q {[%clk 0:00:40.1]} 1-0

[Event "Early-Titled-Tuesday-Blitz-September-26-2023"]
[Site "Chess.com"]
[Date "2023.09.26"]
[Round "3"]
[White "Barmen_EV"]
[Black "Alphafischer2019"]
[Result "1-0"]
[WhiteElo "2458"]
[BlackElo "2620"]
[TimeControl "180+1"]
[EndTime "8:28:51 PDT"]
[Termination "Barmen_EV won by checkmate"]

1. e4 {[%clk 0:03:00.9]} 1... Nf6 {[%clk 0:03:00.6]} 2. Nc3 {[%clk 0:02:59.8]}
2... d6 {[%clk 0:02:56.1]} 3. d4 {[%clk 0:02:58.8]} 3... g6 {[%clk 0:02:56.2]}
4. Nf3 {[%clk 0:02:59.3]} 4... Bg7 {[%clk 0:02:56.1]} 5. Bc4 {[%clk 0:02:59.8]}
5... O-O {[%clk 0:02:55.2]} 6. Qe2 {[%clk 0:03:00]} 6... c6 {[%clk 0:02:53.3]}
7. a4 {[%clk 0:02:51.2]} 7... d5 {[%clk 0:02:43.6]} 8. Bb3 {[%clk 0:02:50.9]}
8... dxe4 {[%clk 0:02:37.5]} 9. Nxe4 {[%clk 0:02:51.1]} 9... Bg4 {[%clk
0:02:36.2]} 10. c3 {[%clk 0:02:48]} 10... Nbd7 {[%clk 0:02:29.8]} 11. Nxf6+
{[%clk 0:02:27.3]} 11... Nxf6 {[%clk 0:02:25.5]} 12. O-O {[%clk 0:02:26.5]}
12... e6 {[%clk 0:02:24.3]} 13. h3 {[%clk 0:02:25.4]} 13... Bxf3 {[%clk
0:02:24.2]} 14. Qxf3 {[%clk 0:02:26.3]} 14... Qd7 {[%clk 0:02:20.6]} 15. Bf4
{[%clk 0:02:20.5]} 15... Nd5 {[%clk 0:02:16.1]} 16. Rfe1 {[%clk 0:02:20.3]}
16... Nxf4 {[%clk 0:02:15.6]} 17. Qxf4 {[%clk 0:02:21.1]} 17... Rac8 {[%clk
0:02:10.9]} 18. Rad1 {[%clk 0:02:19.9]} 18... Qc7 {[%clk 0:02:08.5]} 19. Qf3
{[%clk 0:02:16.2]} 19... Qb6 {[%clk 0:02:08.4]} 20. Bc4 {[%clk 0:01:57.4]} 20...
a5 {[%clk 0:01:55.2]} 21. Re2 {[%clk 0:01:34.1]} 21... Rcd8 {[%clk 0:01:53]} 22.
Rde1 {[%clk 0:01:22.4]} 22... h5 {[%clk 0:01:52.9]} 23. g4 {[%clk 0:01:12]}
23... hxg4 {[%clk 0:01:48.4]} 24. hxg4 {[%clk 0:01:11.8]} 24... Bh6 {[%clk
0:01:39]} 25. Kg2 {[%clk 0:00:54.9]} 25... Kg7 {[%clk 0:01:38.1]} 26. Qg3 {[%clk
0:00:43.8]} 26... Bg5 {[%clk 0:01:32.2]} 27. f4 {[%clk 0:00:40.3]} 27... Bf6
{[%clk 0:01:07.6]} 28. g5 {[%clk 0:00:29.9]} 28... Be7 {[%clk 0:01:07.6]} 29.
Bxe6 {[%clk 0:00:17.8]} 29... fxe6 {[%clk 0:01:02.3]} 30. Rxe6 {[%clk
0:00:18.7]} 30... Bd6 {[%clk 0:00:55.8]} 31. Qd3 {[%clk 0:00:16.2]} 31... Rf5
{[%clk 0:00:52]} 32. Rxg6+ {[%clk 0:00:11.9]} 32... Kxg6 {[%clk 0:00:47.2]} 33.
Re6+ {[%clk 0:00:12.1]} 33... Kg7 {[%clk 0:00:36.2]} 34. Qxf5 {[%clk 0:00:12.3]}
34... Qxb2+ {[%clk 0:00:36.9]} 35. Kh3 {[%clk 0:00:09.2]} 35... Qxc3+ {[%clk
0:00:33.3]} 36. Kg4 {[%clk 0:00:09.1]} 36... Qxd4 {[%clk 0:00:20.4]} 37. Qg6+
{[%clk 0:00:04.4]} 37... Kh8 {[%clk 0:00:16.3]} 38. Qh6+ {[%clk 0:00:04.1]}
38... Kg8 {[%clk 0:00:17]} 39. Rg6+ {[%clk 0:00:04.3]} 39... Kf7 {[%clk
0:00:17.8]} 40. Qh7+ {[%clk 0:00:02.5]} 40... Ke8 {[%clk 0:00:18.5]} 41. Re6+
{[%clk 0:00:02.4]} 41... Kf8 {[%clk 0:00:17.7]} 42. Rf6+ {[%clk 0:00:03.1]}
42... Qxf6 {[%clk 0:00:16.5]} 43. gxf6 {[%clk 0:00:04]} 43... Bc5 {[%clk
0:00:14.2]} 44. Qg7+ {[%clk 0:00:04.5]} 44... Ke8 {[%clk 0:00:15.1]} 45. f7+
{[%clk 0:00:05]} 45... Kd7 {[%clk 0:00:15.4]} 46. f8=Q+ {[%clk 0:00:05.9]} 46...
Kc8 {[%clk 0:00:16.3]} 47. Qxc5 {[%clk 0:00:05.5]} 47... Rd7 {[%clk 0:00:16.9]}
48. Qg8+ {[%clk 0:00:05.5]} 48... Kc7 {[%clk 0:00:17.3]} 49. Qe5+ {[%clk
0:00:05.8]} 49... Kb6 {[%clk 0:00:17.7]} 50. Qb3+ {[%clk 0:00:05.5]} 50... Ka6
{[%clk 0:00:17.5]} 51. Qe2+ {[%clk 0:00:05]} 51... Ka7 {[%clk 0:00:17.7]} 52.
Qc3 {[%clk 0:00:05.6]} 52... Rd5 {[%clk 0:00:18.3]} 53. Qe4 {[%clk 0:00:05.4]}
53... Rd1 {[%clk 0:00:16.9]} 54. Qxa5+ {[%clk 0:00:05.5]} 54... Kb8 {[%clk
0:00:17.8]} 55. Qe8+ {[%clk 0:00:05.7]} 55... Rd8 {[%clk 0:00:18.7]} 56. Qexd8#
{[%clk 0:00:06.4]} 1-0